bitfinex/quotes_BTCUSD_20241117
["timestamp","ask_amount","ask_price","bid_price","bid_amount"]
[1731848612169,0.10984,91041.0,91037.0,0.00185293]
[1731848612406,0.0461,91050.0,91032.0,0.10985]
[1731848612636,0.10984,91041.0,91032.0,0.10985]
[1731848612860,0.10984,91041.0,91033.0,0.11172238]
[1731848613285,0.109839,91042.0,91034.0,0.109848]
[1731848613756,0.109839,91042.0,91035.0,0.00185765]
[1731848614006,0.109843,91039.0,91035.0,0.00185765]
[1731848614228,0.219675,91044.0,91035.0,0.00185765]
[1731848614448,0.16470033,91043.0,91029.0,0.0017132]
[1731848614672,0.0765,91042.0,91029.0,0.0017132]
[1731848614924,0.109848,91035.0,91030.0,0.00186628]
[1731848615148,0.0473,91036.0,91030.0,0.00186628]
[1731848615373,0.219698,91034.0,91030.0,0.00186628]
[1731848615606,0.109852,91031.0,91030.0,0.00186628]
[1731848615831,0.109853,91030.0,91029.0,0.0017132]
[1731848618548,0.25627942,91032.0,91029.0,0.0017132]
[1731848618751,0.109853,91030.0,91029.0,0.0017132]
[1731848625871,0.186353,91030.0,91029.0,0.0017132]
[1731848627432,0.186353,91030.0,91005.0,0.14534475]
[1731848627433,0.0473,91037.0,91008.0,0.00219737]
[1731848627658,0.0473,91037.0,91013.0,0.16470033]
[1731848627885,0.0473,91037.0,91014.0,0.11125961]
[1731848628110,0.109848,91035.0,91027.0,0.109856]
[1731848628577,0.0473,91037.0,91016.0,0.09844475]
[1731848628814,0.0765,91044.0,91013.0,0.16470033]
[1731848628815,0.16470033,91043.0,91024.0,0.1]
[1731848629111,0.16470033,91042.0,91041.0,0.10984]
[1731848629576,0.0008568,91049.0,91048.0,0.109832]
[1731848630259,0.0008568,91049.0,91048.0,0.11169246]
[1731848631329,0.0008568,91049.0,91048.0,0.00186046]
[1731848631543,0.0008568,91049.0,91045.0,0.109835]
[1731848631750,0.0008568,91049.0,91048.0,0.00185917]
[1731848631971,0.0008568,91049.0,91048.0,0.109832]
[1731848632205,0.0008568,91049.0,91048.0,0.11167616]
[1731848632625,0.0008568,91049.0,91048.0,0.00184416]
[1731848633104,0.0008568,91049.0,91048.0,0.11167616]
[1731848633308,0.0008568,91049.0,91048.0,0.00184416]
[1731848633512,0.10983,91049.0,91048.0,0.00184416]
[1731848633718,0.01027316,91056.0,91039.0,0.219684]
[1731848633959,0.01027316,91056.0,91030.0,0.09838937]
[1731848633960,0.109831,91049.0,91042.0,0.109838]
[1731848634188,0.219649,91055.0,91030.0,0.09838937]
[1731848634420,0.109833,91048.0,91039.0,0.109843]
[1731848634647,0.109829,91050.0,91040.0,0.109841]
[1731848634872,0.109831,91049.0,91042.0,0.109838]
[1731848635315,0.109834,91046.0,91041.0,0.00185674]
[1731848635543,0.109834,91046.0,91040.0,0.109841]
[1731848635783,0.109837,91044.0,91042.0,0.00184888]
[1731848635986,0.0008568,91049.0,91032.0,0.219702]
[1731848635987,0.109839,91043.0,91041.0,0.00185045]
[1731848636201,0.109839,91042.0,91035.0,0.109847]
[1731848636415,0.109842,91040.0,91032.0,0.219702]
[1731848636632,0.109842,91040.0,91034.0,0.109848]
[1731848636831,0.16470033,91041.0,91023.0,0.09838937]
[1731848637080,0.109848,91035.0,91028.0,0.109855]
[1731848637298,0.109848,91035.0,91029.0,0.109854]
[1731848637747,0.109845,91037.0,91030.0,0.109853]
[1731848638000,0.219686,91039.0,91030.0,0.109853]
[1731848638227,0.219683,91040.0,91030.0,0.109853]
[1731848638444,0.219681,91041.0,91021.0,0.0017136]
[1731848638658,0.0809,91040.0,91025.0,0.109859]
[1731848638877,0.219689,91038.0,91021.0,0.0017136]
[1731848639097,0.10985,91033.0,91026.0,0.109858]
[1731848639775,0.109851,91032.0,91026.0,0.109858]
[1731848639997,0.109854,91030.0,91022.0,0.109862]
[1731848640214,0.0809,91040.0,91021.0,0.0017136]
[1731848640215,0.109863,91022.0,91021.0,0.0017136]
[1731848640430,0.109863,91023.0,91021.0,0.0017136]
[1731848640737,0.109861,91025.0,91021.0,0.0017136]
[1731848640946,0.10986,91025.0,91021.0,0.0017136]
[1731848641372,0.109855,91029.0,91021.0,0.0017136]
[1731848641589,0.109857,91027.0,91021.0,0.1115776]
[1731848641800,0.109857,91027.0,91021.0,0.1115766]
[1731848642493,0.109859,91026.0,91021.0,0.0017136]
[1731848645387,0.109859,91026.0,91021.0,0.00143633]
[1731848645598,0.21971,91029.0,91021.0,0.00143633]
[1731848645828,0.109857,91027.0,91021.0,0.11130033]
[1731848647104,0.0008569,91030.0,91023.0,0.109861]
[1731848647319,0.0008569,91030.0,91021.0,0.00143633]
[1731848647530,0.109857,91027.0,91021.0,0.00143633]
[1731848648012,0.2205659,91030.0,91022.0,0.109863]
[1731848648241,0.109857,91028.0,91021.0,0.11129933]
[1731848648493,0.033857,91027.0,91021.0,0.11129933]
[1731848648721,0.109857,91027.0,91021.0,0.11129933]
[1731848648969,0.0008569,91030.0,91024.0,0.10986]
[1731848649185,0.0008569,91030.0,91029.0,0.109855]
[1731848649649,0.0008569,91030.0,91029.0,0.11172921]
[1731848652120,0.0008569,91030.0,91029.0,0.22079176]
[1731848652342,0.0008569,91030.0,91029.0,0.26919176]
[1731848652551,0.0008569,91030.0,91029.0,0.36763281]
[1731848652969,0.0008569,91030.0,91029.0,0.26919176]
[1731848653687,0.1107099,91030.0,91029.0,0.00187421]
[1731848654107,0.109858,91026.0,91021.0,0.00143633]
[1731848654354,0.109863,91022.0,91021.0,0.00143633]
[1731848654555,0.29702555,91022.0,91021.0,0.00143633]
[1731848655942,0.187963,91022.0,91021.0,0.00143633]
[1731848658619,0.109863,91022.0,91021.0,0.00143633]
[1731848659603,0.0764,91029.0,91021.0,0.00143633]
[1731848659814,0.219715,91027.0,91021.0,0.00143633]
[1731848660039,0.10986,91025.0,91021.0,0.00143633]
[1731848660463,0.219715,91027.0,91021.0,0.00143633]
[1731848660679,0.0485569,91030.0,91021.0,0.00143633]
[1731848660894,0.0008569,91030.0,91021.0,0.00143633]
[1731848661105,0.0008569,91030.0,91022.0,0.00241352]
[1731848661543,0.0008569,91030.0,91029.0,0.109855]
[1731848661761,0.05388967,91043.0,91028.0,0.219712]
[1731848662008,0.05388967,91043.0,91033.0,0.109849]
[1731848662430,0.16372767,91043.0,91033.0,0.109849]
[1731848662644,0.16372767,91043.0,91034.0,0.109848]
[1731848662863,0.0764,91045.0,91026.0,0.0754]
[1731848663088,0.109833,91048.0,91038.0,0.109843]
[1731848663571,0.2205198,91049.0,91034.0,0.109848]
[1731848663785,0.219666,91047.0,91032.0,0.109851]
[1731848663999,0.10984,91042.0,91032.0,0.109851]
[1731848664230,0.109844,91039.0,91027.0,0.109857]
[1731848664451,0.109844,91039.0,91024.0,0.219719]
[1731848664452,0.219666,91047.0,91033.0,0.00239999]
[1731848664670,0.0008568,91049.0,91024.0,0.219719]
[1731848664671,0.16470033,91043.0,91024.0,0.219719]
[1731848664889,0.16470033,91043.0,91024.0,0.49348188]
[1731848665105,0.219664,91048.0,91025.0,0.22211786]
[1731848665307,0.109839,91042.0,91030.0,0.109852]
[1731848665519,0.10984,91041.0,91030.0,0.109852]
[1731848666164,0.21968,91042.0,91029.0,0.109854]
[1731848666376,0.109842,91040.0,91029.0,0.109854]
[1731848666585,0.16470033,91043.0,91032.0,0.10985]
[1731848666586,0.27453833,91043.0,91032.0,0.10985]
[1731848666803,0.16470033,91043.0,91025.0,0.219718]
[1731848667009,0.109843,91039.0,91025.0,0.219718]
[1731848667219,0.219681,91041.0,91026.0,0.22211376]
[1731848667438,0.219681,91041.0,91024.0,0.27376288]
[1731848667690,0.2197,91033.0,91021.0,0.00143633]
[1731848667902,0.219702,91032.0,91025.0,0.00239467]
[1731848668117,0.0764,91034.0,91021.0,0.00143633]
[1731848668573,0.109859,91026.0,91021.0,0.00143633]
[1731848668798,0.109855,91029.0,91021.0,0.00143633]
[1731848669008,0.0764,91034.0,91021.0,0.00143633]
[1731848669226,0.219703,91032.0,91021.0,0.00143633]
[1731848669430,0.109857,91028.0,91021.0,0.00143633]
[1731848669657,0.109855,91029.0,91021.0,0.00143633]
[1731848670309,0.219707,91030.0,91021.0,0.00143633]
[1731848670533,0.109861,91024.0,91021.0,0.00143633]
[1731848671453,0.109863,91022.0,91021.0,0.00143633]
[1731848678014,0.219724,91024.0,91021.0,0.00143633]
[1731848678227,0.10986,91025.0,91021.0,0.00143633]
[1731848678454,0.033855,91029.0,91021.0,0.00143633]
[1731848678708,0.109858,91027.0,91021.0,0.00143633]
[1731848678930,0.329565,91029.0,91021.0,0.00143633]
[1731848679155,0.0764,91034.0,91021.0,0.00143633]
[1731848679375,0.16470033,91033.0,91021.0,0.00143633]
[1731848679595,0.109854,91030.0,91022.0,0.00239598]
[1731848679806,0.109854,91030.0,91021.0,0.00143633]
[1731848680473,0.10985,91033.0,91021.0,0.00143633]
[1731848680701,0.0764,91034.0,91023.0,0.109862]
[1731848680916,0.10985,91033.0,91022.0,0.109863]
[1731848681129,0.10985,91033.0,91024.0,0.00239595]
[1731848681351,0.109852,91031.0,91024.0,0.00239595]
[1731848681569,0.109852,91031.0,91021.0,0.00143633]
[1731848681969,0.109852,91031.0,91021.0,0.00383231]
[1731848682190,0.10985,91033.0,91021.0,0.00143633]
[1731848682436,0.109851,91032.0,91021.0,0.00383231]
[1731848682663,0.109851,91032.0,91021.0,0.00143633]
[1731848682898,0.109854,91030.0,91022.0,0.00239598]
[1731848683128,0.109852,91032.0,91022.0,0.00239598]
[1731848683353,0.186249,91034.0,91021.0,0.00143633]
[1731848683553,0.186249,91034.0,91023.0,0.00205765]
[1731848683781,0.186249,91034.0,91022.0,0.00206301]
[1731848684004,0.186249,91034.0,91024.0,0.00240265]
[1731848684222,0.0764,91034.0,91021.0,0.00143633]
[1731848684449,0.109852,91032.0,91022.0,0.00240685]
[1731848684684,0.03759504,91037.0,91022.0,0.00240685]
[1731848684899,0.16470033,91033.0,91022.0,0.00240685]
[1731848685108,0.0008567,91041.0,91021.0,0.00143633]
[1731848685321,0.109841,91040.0,91024.0,0.10986]
[1731848685573,0.109843,91039.0,91022.0,0.11227614]
[1731848685779,0.109843,91039.0,91025.0,0.00206301]
[1731848686005,0.109843,91039.0,91026.0,0.00240895]
[1731848686243,0.03879506,91041.0,91021.0,0.00143633]
[1731848686461,0.109842,91040.0,91027.0,0.00206301]
[1731848686680,0.03879506,91041.0,91021.0,0.00143633]
[1731848686934,0.10985,91033.0,91021.0,0.00143633]
[1731848687156,0.21969,91037.0,91022.0,0.002072]
[1731848687376,0.109859,91026.0,91022.0,0.002072]
[1731848687626,0.109854,91030.0,91022.0,0.002072]
[1731848687847,0.109854,91030.0,91023.0,0.00239639]
[1731848688521,0.109854,91030.0,91021.0,0.00143633]
[1731848688742,0.219696,91035.0,91023.0,0.00239639]
[1731848688960,0.109855,91029.0,91022.0,0.00239849]
[1731848689174,0.109853,91031.0,91024.0,0.00206124]
[1731848689391,0.109846,91036.0,91021.0,0.00143633]
[1731848689599,0.109846,91036.0,91018.0,0.16470033]
[1731848689600,0.109857,91028.0,91024.0,0.00239639]
[1731848689982,0.109857,91028.0,91018.0,0.13913666]
[1731848690417,0.109857,91027.0,91011.0,0.109876]
[1731848690835,0.109857,91027.0,91010.0,0.03824211]
[1731848691251,0.109857,91027.0,91011.0,0.109876]
[1731848691459,0.109857,91027.0,91010.0,0.109877]
[1731848691677,0.109857,91027.0,91011.0,0.109876]
[1731848692326,0.16470033,91029.0,91011.0,0.109876]
[1731848692540,0.16470033,91029.0,91010.0,0.219756]
[1731848692541,0.27455533,91029.0,91013.0,0.109874]
[1731848692757,0.27455533,91029.0,91011.0,0.109876]
[1731848692758,0.109856,91028.0,91011.0,0.109876]
[1731848693188,0.16470033,91029.0,91010.0,0.219754]
[1731848693414,0.08870033,91029.0,91009.0,0.22307065]
[1731848693627,0.109857,91027.0,91011.0,0.109876]
[1731848694132,0.41826533,91029.0,91018.0,0.0017134]
[1731848694358,0.08870033,91029.0,91018.0,0.0017134]
[1731848694599,0.109856,91028.0,91018.0,0.0017134]
[1731848695051,0.109856,91028.0,91009.0,0.22307065]
[1731848695272,0.109856,91028.0,91011.0,0.109875]
[1731848695947,0.109866,91020.0,91010.0,0.03]
[1731848696167,0.16470033,91019.0,91010.0,0.03]
[1731848696439,0.0481,91024.0,91010.0,0.03]
[1731848696440,0.219724,91023.0,91010.0,0.03]
[1731848696651,0.109876,91011.0,91010.0,0.03]
[1731848697552,0.188976,91012.0,91010.0,0.03]
[1731848697781,0.109876,91011.0,91010.0,0.03]
[1731848698856,0.0791,91012.0,91010.0,0.03]
[1731848699088,0.157974,91013.0,91010.0,0.03]
[1731848699539,0.0481,91013.0,91010.0,0.03]
[1731848699751,0.0481,91013.0,90995.0,0.07684932]
[1731848699988,0.109876,91012.0,90995.0,0.29580687]
[1731848700445,0.0481,91013.0,90995.0,0.18591187]
[1731848700651,0.10988,91009.0,90995.0,0.18591187]
[1731848700876,0.219753,91011.0,90995.0,0.18591187]
[1731848701301,0.109878,91010.0,90995.0,0.18591187]
[1731848701539,0.109879,91009.0,90995.0,0.18591187]
[1731848701772,0.219753,91011.0,90995.0,0.18591187]
[1731848702003,0.109877,91011.0,90995.0,0.18591187]
[1731848702226,0.109878,91010.0,90995.0,0.18591187]
[1731848702908,0.109879,91009.0,90995.0,0.18591187]
[1731848703125,0.219761,91008.0,90987.0,0.16470033]
[1731848703356,0.109884,91005.0,90990.0,0.10906255]
[1731848703797,0.219758,91010.0,90990.0,0.10906255]
[1731848704057,0.08553224,91013.0,90990.0,0.10906255]
[1731848704058,0.109892,90999.0,90990.0,0.10906255]
[1731848704311,0.109896,90995.0,90986.0,0.16470033]
[1731848704574,0.109898,90993.0,90987.0,0.16470033]
[1731848704824,0.0481,90999.0,90976.0,0.29450033]
[1731848704825,0.109901,90991.0,90976.0,0.29450033]
[1731848705031,0.219798,90993.0,90977.0,0.10906255]
[1731848705265,0.16470033,90992.0,90977.0,0.10906255]
[1731848705514,0.16470033,90992.0,90976.0,0.043941]
[1731848705733,0.109915,90979.0,90972.0,0.0017132]
[1731848705960,0.109916,90978.0,90974.0,0.16470033]
[1731848706186,0.109914,90980.0,90972.0,0.0017132]
[1731848706409,0.1272,90985.0,90972.0,0.0017132]
[1731848706410,0.10991,90983.0,90972.0,0.0017132]
[1731848706662,0.109914,90980.0,90972.0,0.0017132]
[1731848707994,0.1272,90985.0,90972.0,0.0017132]
[1731848708205,0.20244624,90992.0,90976.0,0.190518]
[1731848708428,0.109904,90988.0,90976.0,0.0806]
[1731848708861,0.08870033,90992.0,90976.0,0.0806]
[1731848708862,0.19860033,90992.0,90976.0,0.0806]
[1731848709071,0.08870033,90992.0,90976.0,0.0806]
[1731848709252,0.109902,90990.0,90976.0,0.0806]
[1731848709730,0.109903,90989.0,90976.0,0.0806]
[1731848709934,0.08870033,90992.0,90976.0,0.0806]
[1731848710141,0.12581918,90992.0,90976.0,0.0806]
[1731848711201,0.14701885,90992.0,90976.0,0.08279814]
[1731848711413,0.03711885,90992.0,90976.0,0.24191614]
[1731848711624,0.109904,90989.0,90976.0,0.1298]
[1731848711861,0.16470033,90995.0,90980.0,0.109914]
[1731848712074,0.16470033,90995.0,90977.0,0.0021981]
[1731848712075,0.31195159,90995.0,90977.0,0.1121151]
[1731848712324,0.109898,90993.0,90981.0,0.00207919]
[1731848712587,0.20205559,90995.0,90978.0,0.00208459]
[1731848712588,0.03735526,90995.0,90978.0,0.00208459]
[1731848712819,0.0493,91003.0,90977.0,0.0021981]
[1731848712820,0.16470033,90994.0,90982.0,0.00427191]
[1731848713063,0.16470033,90994.0,90981.0,0.10906255]
[1731848713279,0.16470033,90994.0,90982.0,0.00207561]
[1731848713731,0.16470033,90983.0,90982.0,0.00207561]
[1731848713942,0.10991,90983.0,90982.0,0.00207561]
[1731848714152,0.0493,90988.0,90964.0,0.16470033]
[1731848714153,0.0493,90988.0,90964.0,0.20178882]
[1731848714386,0.109917,90978.0,90964.0,0.20178882]
[1731848714625,0.219811,90987.0,90964.0,0.20178882]
[1731848714626,0.109916,90979.0,90964.0,0.20178882]
[1731848714858,0.219811,90987.0,90964.0,0.20178882]
[1731848715114,0.0493,90988.0,90964.0,0.20178882]
[1731848715115,0.16470033,90984.0,90964.0,0.20178882]
[1731848715338,0.219822,90983.0,90964.0,0.16470033]
[1731848715559,0.109913,90981.0,90964.0,0.27463233]
[1731848715790,0.03726105,90987.0,90964.0,0.16470033]
[1731848716185,0.109914,90980.0,90964.0,0.16470033]
[1731848716425,0.109916,90979.0,90964.0,0.16470033]
[1731848717105,0.0864185,90988.0,90964.0,0.16470033]
[1731848717352,0.16470033,90984.0,90965.0,0.109931]
[1731848717590,0.109914,90981.0,90964.0,0.16470033]
[1731848717816,0.109914,90980.0,90964.0,0.16470033]
[1731848718282,0.109914,90980.0,90964.0,0.27463333]
[1731848718511,0.109914,90980.0,90964.0,0.16470033]
[1731848718978,0.109915,90979.0,90964.0,0.16470033]
[1731848719452,0.16470033,90983.0,90964.0,0.16470033]
[1731848719683,0.219823,90982.0,90964.0,0.16470033]
[1731848719916,0.109917,90978.0,90964.0,0.16470033]
[1731848720141,0.219828,90980.0,90964.0,0.16470033]
[1731848720368,0.109917,90978.0,90964.0,0.16470033]
[1731848720618,0.219828,90980.0,90964.0,0.16470033]
[1731848721073,0.109916,90978.0,90964.0,0.16470033]
[1731848721312,0.219823,90982.0,90964.0,0.16470033]
[1731848721540,0.109917,90978.0,90964.0,0.16470033]
[1731848721972,0.16470033,90983.0,90964.0,0.16470033]
[1731848722191,0.109921,90974.0,90964.0,0.16470033]
[1731848722405,0.16470033,90983.0,90964.0,0.16470033]
[1731848722406,0.219828,90980.0,90964.0,0.16470033]
[1731848722616,0.10992,90975.0,90964.0,0.16470033]
[1731848722872,0.16470033,90983.0,90964.0,0.16470033]
[1731848723090,0.109918,90977.0,90964.0,0.16470033]
[1731848723531,0.219823,90982.0,90964.0,0.16470033]
[1731848723740,0.109919,90976.0,90964.0,0.16470033]
[1731848723947,0.109918,90977.0,90964.0,0.16470033]
[1731848724839,0.219828,90980.0,90964.0,0.16470033]
[1731848725075,0.10992,90975.0,90964.0,0.16470033]
[1731848725292,0.219828,90980.0,90963.0,0.0769]
[1731848725506,0.109922,90973.0,90961.0,0.16470033]
[1731848725760,0.155722,90973.0,90961.0,0.16470033]
[1731848728223,0.34498455,90973.0,90952.0,0.0017132]
[1731848728498,0.44498455,90973.0,90962.0,0.16470033]
[1731848728710,0.44998455,90973.0,90952.0,0.0017132]
[1731848728963,0.230946,90953.0,90952.0,0.0017132]
[1731848729653,0.34000855,90953.0,90952.0,0.0017132]
[1731848729869,0.44500855,90953.0,90952.0,0.0017132]
[1731848730332,0.45000855,90953.0,90952.0,0.0017132]
[1731848730554,0.45200855,90953.0,90952.0,0.0017132]
[1731848731319,0.31446654,90953.0,90952.0,0.0017132]
[1731848732001,0.31446654,90953.0,90950.0,0.03]
[1731848732002,0.244949,90951.0,90950.0,0.0105798]
[1731848732256,0.35401155,90951.0,90950.0,8e-07]
[1731848733414,0.221965,90938.0,90937.0,0.0017126]
[1731848733638,0.33102755,90938.0,90937.0,0.0017126]
[1731848734329,0.47688935,90938.0,90937.0,0.0017126]
[1731848735302,0.29332488,90938.0,90937.0,0.0017126]
[1731848735538,0.31565545,90938.0,90937.0,0.0017126]
[1731848735770,0.02683889,90938.0,90919.0,0.0017128]
[1731848736042,0.109986,90920.0,90919.0,0.0017128]
[1731848736269,0.219965,90924.0,90919.0,0.0017128]
[1731848736270,0.21997,90922.0,90919.0,0.0017128]
[1731848736542,0.109986,90920.0,90919.0,0.0017128]
[1731848737284,0.13238645,90920.0,90919.0,0.0017128]
[1731848737510,0.23238645,90920.0,90919.0,0.0017128]
[1731848738214,0.109988,90919.0,90918.0,6e-07]
[1731848738447,0.109988,90919.0,90883.0,0.0805]
[1731848738448,0.233004,90905.0,90904.0,8e-07]
[1731848738696,0.45507793,90905.0,90904.0,8e-07]
[1731848738909,0.46746655,90905.0,90904.0,8e-07]
[1731848739595,0.44446655,90905.0,90904.0,8e-07]
[1731848739882,0.210004,90905.0,90904.0,8e-07]
[1731848740598,0.110004,90905.0,90904.0,8e-07]
[1731848740850,0.14709006,90905.0,90904.0,8e-07]
[1731848741079,0.03408606,90905.0,90904.0,8e-07]
[1731848741311,0.16470033,90932.0,90905.0,0.0805]
[1731848741553,0.110003,90906.0,90905.0,0.0805]
[1731848741779,0.109998,90911.0,90906.0,0.00396279]
[1731848742001,0.110001,90908.0,90905.0,0.08445113]
[1731848742225,0.02237478,90924.0,90907.0,0.16865535]
[1731848742496,0.20184648,90922.0,90907.0,0.005]
[1731848742725,0.109988,90919.0,90908.0,0.0039684]
[1731848742970,0.219946,90931.0,90914.0,0.005]
[1731848743212,0.109978,90927.0,90915.0,0.002]
[1731848743447,0.20310821,90932.0,90915.0,0.00887009]
[1731848743678,0.109983,90923.0,90915.0,0.005]
[1731848743886,0.03840788,90932.0,90916.0,0.17364499]
[1731848744112,0.03840788,90932.0,90916.0,0.00894466]
[1731848744357,0.109977,90928.0,90916.0,0.00894466]
[1731848744830,0.03735644,90935.0,90919.0,0.005]
[1731848745103,0.109974,90931.0,90920.0,0.002]
[1731848745331,0.109976,90929.0,90923.0,0.005]
[1731848745564,0.219913,90945.0,90923.0,0.005]
[1731848745775,0.0489,90970.0,90923.0,0.005]
[1731848745776,0.109981,90924.0,90923.0,0.005]
[1731848747290,0.38460233,90950.0,90911.0,0.0759]
[1731848747291,0.219956,90927.0,90911.0,0.0759]
[1731848747532,0.109989,90919.0,90914.0,0.005]
[1731848747740,0.109989,90918.0,90915.0,0.005]
[1731848748241,0.219971,90921.0,90914.0,0.005]
[1731848748452,0.109989,90918.0,90915.0,0.005]
[1731848748895,0.109991,90917.0,90914.0,0.005]
[1731848749092,0.109991,90917.0,90916.0,0.005]
[1731848749301,0.0374743,90924.0,90916.0,0.005]
[1731848749512,0.109986,90921.0,90916.0,0.005]
[1731848749942,0.109986,90920.0,90916.0,0.005]
[1731848750619,0.20237412,90930.0,90916.0,0.005]
[1731848750824,0.109975,90929.0,90916.0,0.005]
[1731848751031,0.104987,90920.0,90916.0,0.005]
[1731848751238,0.20237412,90930.0,90916.0,0.005]
[1731848751753,0.109986,90921.0,90916.0,0.005]
[1731848752003,0.219954,90928.0,90917.0,0.16470033]
[1731848752222,0.109983,90923.0,90916.0,0.005]
[1731848752427,0.109986,90921.0,90916.0,0.005]
[1731848752643,0.02195783,90935.0,90916.0,0.005]
[1731848752862,0.16470033,90930.0,90916.0,0.005]
[1731848753283,0.109985,90922.0,90916.0,0.005]
[1731848753495,0.16470033,90930.0,90916.0,0.005]
[1731848753496,0.219957,90927.0,90916.0,0.005]
[1731848753674,0.16470033,90930.0,90916.0,0.005]
[1731848753951,0.109965,90938.0,90921.0,0.005]
[1731848754154,0.16470033,90930.0,90923.0,0.005]
[1731848754397,0.1,90939.0,90923.0,0.005]
[1731848754605,0.1,90939.0,90924.0,0.00320894]
[1731848754820,0.109974,90931.0,90923.0,0.005]
[1731848755073,0.1,90939.0,90925.0,0.00320776]
[1731848755326,0.1,90939.0,90924.0,0.00320894]
[1731848755544,0.1,90939.0,90925.0,0.005]
[1731848755724,0.21993,90938.0,90925.0,0.005]
[1731848755963,0.109968,90935.0,90926.0,0.00320129]
[1731848756143,0.109968,90935.0,90925.0,0.005]
[1731848756373,0.10997,90934.0,90926.0,0.0817]
[1731848756592,0.10997,90934.0,90926.0,0.08488153]
[1731848756810,0.10997,90934.0,90926.0,0.0817]
[1731848757084,0.21993,90938.0,90926.0,0.0817]
[1731848757311,0.219934,90936.0,90927.0,0.00318035]
[1731848757547,0.10997,90934.0,90927.0,0.00318035]
[1731848757761,0.10997,90934.0,90926.0,0.0817]
[1731848758211,0.03846977,90940.0,90934.0,0.002]
[1731848758418,0.16470033,90935.0,90933.0,0.005]
[1731848758648,0.109951,90949.0,90933.0,0.005]
[1731848758857,0.109961,90941.0,90934.0,0.00318148]
[1731848759085,0.2422442,90947.0,90934.0,0.00318148]
[1731848759327,0.109957,90945.0,90933.0,0.005]
[1731848759591,0.0223362,90947.0,90933.0,0.005]
[1731848759798,0.109962,90941.0,90934.0,0.00319326]
[1731848760224,0.219913,90945.0,90933.0,0.005]
[1731848760447,0.219905,90948.0,90933.0,0.005]
[1731848760653,0.109968,90935.0,90934.0,0.00318742]
[1731848760848,0.109966,90937.0,90934.0,0.00318742]
[1731848761092,0.109966,90937.0,90933.0,0.005]
[1731848761307,0.219912,90946.0,90934.0,0.003178]
[1731848761524,0.109968,90935.0,90934.0,0.003178]
[1731848761752,0.0224308,90948.0,90933.0,0.005]
[1731848761975,0.21991,90946.0,90933.0,0.005]
[1731848762197,0.219908,90947.0,90934.0,0.00319094]
[1731848762433,0.109968,90935.0,90934.0,0.00319094]
[1731848762654,0.0224308,90948.0,90930.0,0.11406255]
[1731848762868,0.109969,90935.0,90934.0,0.00318467]
[1731848763116,0.109971,90933.0,90931.0,0.00320351]
[1731848763324,0.0224308,90948.0,90930.0,0.10906255]
[1731848763531,0.109972,90933.0,90932.0,0.00871534]
[1731848763750,0.219908,90947.0,90933.0,0.005]
[1731848763989,0.109964,90939.0,90933.0,0.005]
[1731848764196,0.219907,90948.0,90934.0,0.00334829]
[1731848764463,0.20160444,90950.0,90937.0,0.005]
[1731848764667,0.109957,90945.0,90937.0,0.005]
[1731848765136,0.219903,90949.0,90937.0,0.005]
[1731848765375,0.109965,90938.0,90937.0,0.005]
[1731848765580,0.109968,90935.0,90934.0,0.10906255]
[1731848765810,0.20160444,90950.0,90930.0,0.005]
[1731848766025,0.20160444,90950.0,90927.0,0.054]
[1731848766026,0.219903,90949.0,90936.0,0.005]
[1731848766246,0.16470033,90949.0,90936.0,0.005]
[1731848766450,0.03690411,90950.0,90937.0,0.005]
[1731848766637,0.109952,90949.0,90937.0,0.005]
[1731848766870,0.109952,90949.0,90938.0,0.0817]
[1731848767084,0.2439654,90951.0,90938.0,0.0817]
[1731848767085,0.219901,90950.0,90938.0,0.0817]
[1731848767308,0.0017148,90951.0,90938.0,0.0817]
[1731848767536,0.10996,90942.0,90938.0,0.0817]
[1731848768427,0.03915045,90951.0,90938.0,0.0817]
[1731848768428,0.219901,90950.0,90938.0,0.0817]
[1731848768634,0.109963,90939.0,90938.0,0.0817]
[1731848769075,0.10996,90942.0,90938.0,0.0817]
[1731848769307,0.109958,90944.0,90938.0,0.0817]
[1731848769530,0.03915045,90951.0,90939.0,0.0039246]
[1731848770212,0.109954,90947.0,90939.0,0.0039246]
[1731848770446,0.219903,90949.0,90940.0,0.002]
[1731848770673,0.109956,90945.0,90940.0,0.0059465]
[1731848770934,0.03915045,90951.0,90938.0,0.0817]
[1731848770935,0.03915045,90951.0,90941.0,0.00392621]
[1731848771153,0.109952,90949.0,90941.0,0.00392621]
[1731848771376,0.109952,90948.0,90938.0,0.0837]
[1731848771602,0.219902,90950.0,90942.0,0.0039465]
[1731848771822,0.109957,90945.0,90938.0,0.0817]
[1731848772293,0.109957,90945.0,90939.0,0.00394488]
[1731848772523,0.109956,90946.0,90939.0,0.00394488]
[1731848772749,0.219905,90948.0,90939.0,0.00394488]
[1731848772972,0.109957,90944.0,90939.0,0.00394488]
[1731848773649,0.109956,90945.0,90939.0,0.00394488]
[1731848773869,0.109957,90944.0,90939.0,0.00394488]
[1731848774317,0.109958,90944.0,90939.0,0.00394488]
[1731848774759,0.109957,90944.0,90939.0,0.00394488]
[1731848775444,0.109953,90948.0,90939.0,0.00394488]
[1731848775897,0.219901,90950.0,90938.0,0.0817]
[1731848776113,0.109953,90948.0,90938.0,0.0817]
[1731848776555,0.109953,90948.0,90939.0,0.00394974]
[1731848776777,0.109954,90947.0,90939.0,0.00394974]
[1731848776997,0.03915045,90951.0,90939.0,0.00394974]
[1731848776998,0.0017148,90951.0,90944.0,0.007]
[1731848777244,0.0017148,90951.0,90948.0,0.005]
[1731848777494,0.0017148,90951.0,90950.0,0.005]
[1731848777928,0.0017148,90951.0,90950.0,0.00891383]
[1731848778600,0.0017148,90951.0,90950.0,0.00391383]
[1731848778830,0.1116638,90951.0,90950.0,0.00391383]
[1731848779273,0.0017148,90951.0,90950.0,0.00391383]
[1731848779504,0.0017148,90951.0,90949.0,0.0771]
[1731848779505,0.10995,90950.0,90949.0,0.0771]
[1731848779761,0.0017148,90951.0,90949.0,0.0771]
[1731848780451,0.0017148,90951.0,90950.0,0.01091383]
[1731848780670,0.0017148,90951.0,90950.0,0.007]